bitfinex-derivatives/quotes_BTCF0:USTF0_20210102
["timestamp","ask_amount","ask_price","bid_price","bid_amount"]
[1609593188763,0.15704,30751.0,30750.0,0.04023265]
[1609593188962,0.15704,30751.0,30746.0,0.04023279]
[1609593189263,0.15704,30751.0,30743.0,0.07960425]
[1609593189264,0.15704,30751.0,30750.0,0.04023311]
[1609593189464,0.15704,30751.0,30747.0,0.0402332]
[1609593189664,0.18043158,30748.0,30747.0,0.0402332]
[1609593189864,0.18043158,30748.0,30746.0,0.18043158]
[1609593190065,0.18043158,30748.0,30747.0,0.04023557]
[1609593190665,1.18043158,30748.0,30747.0,0.04023557]
[1609593192567,0.18043158,30748.0,30747.0,0.04023557]
[1609593194770,0.18043158,30748.0,30747.0,0.04023278]
[1609593194970,0.17844807,30748.0,30747.0,0.04023278]
[1609593202980,1.15704,30751.0,30747.0,0.04023278]
[1609593203682,1.15704,30751.0,30750.0,0.18043158]
[1609593204082,1.15704,30751.0,30750.0,0.22066306]
[1609593204283,1.15704,30751.0,30750.0,0.04023148]
[1609593204682,0.15704,30751.0,30750.0,0.04023148]
[1609593204881,0.15704,30751.0,30741.0,0.0795956]
[1609593204882,1.0,30753.0,30741.0,0.119827]
[1609593205181,1.0,30753.0,30751.0,0.04023065]
[1609593205382,1.0,30753.0,30747.0,3.7565]
[1609593205683,1.0,30753.0,30752.0,0.2206613]
[1609593205983,1.0,30753.0,30752.0,0.18043158]
[1609593206185,1.0,30753.0,30752.0,0.22065907]
[1609593206585,0.18043158,30756.0,30752.0,1.22065907]
[1609593207086,0.18043158,30756.0,30753.0,0.11980768]
[1609593208589,1.18043158,30756.0,30753.0,0.11980768]
[1609593208889,1.18043158,30756.0,30753.0,0.04022839]
[1609593211796,1.17844853,30756.0,30753.0,0.04022839]
[1609593212598,0.17844853,30756.0,30753.0,0.04022839]
[1609593215600,0.17844853,30756.0,30753.0,0.64712839]
[1609593215800,0.0977,30755.0,30753.0,0.64712839]
[1609593215999,0.0966,30764.0,30754.0,0.00043879]
[1609593216200,0.15252,30755.0,30754.0,0.04023266]
[1609593216801,0.15252,30755.0,30754.0,3.95633266]
[1609593217202,0.15252,30755.0,30754.0,4.03591683]
[1609593219207,0.15252,30755.0,30754.0,0.11981683]
[1609593219608,0.15252,30755.0,30754.0,6.11751683]
[1609593219807,0.15252,30755.0,30754.0,5.9977]
[1609593220008,0.15252,30755.0,30754.0,6.11749966]
[1609593220509,0.15252,30755.0,30754.0,7.11749966]
[1609593220708,0.15252,30755.0,30754.0,6.11749966]
[1609593221108,0.15998,30766.0,30754.0,6.11749966]
[1609593221310,0.2971,30768.0,30754.0,1.11979966]
[1609593221711,0.2971,30768.0,30755.0,1.11981118]
[1609593221917,0.18043158,30770.0,30767.0,0.18043158]
[1609593222209,0.18043158,30770.0,30767.0,0.22066064]
[1609593222411,0.18043158,30770.0,30768.0,0.0402289]
[1609593224111,0.01004273,30779.0,30768.0,0.0402289]
[1609593224312,0.01004273,30779.0,30769.0,3.803]
[1609593224511,0.01004273,30779.0,30774.0,1.0]
[1609593225111,0.08988855,30780.0,30774.0,1.0]
[1609593225112,0.09993032,30780.0,30775.0,0.04022022]
[1609593225912,0.07,30780.0,30779.0,0.18043158]
[1609593226211,0.07,30780.0,30779.0,1.7400702]
[1609593226412,0.07,30780.0,30779.0,1.1808702]
[1609593226811,0.07,30780.0,30779.0,1.22063964]
[1609593230416,0.18043158,30807.0,30782.0,5.2995]
[1609593230614,0.18043158,30807.0,30783.0,1.0]
[1609593230814,0.18043158,30807.0,30782.0,5.2995]
[1609593231014,0.30446158,30807.0,30779.0,2.04967287]
[1609593231616,0.2982,30806.0,30779.0,2.04967287]
[1609593231817,0.2982,30806.0,30795.0,0.18043158]
[1609593232420,0.2982,30806.0,30796.0,0.00043847]
[1609593232817,0.12403,30807.0,30796.0,0.00043847]
[1609593233819,0.12403,30807.0,30805.0,0.18043158]
[1609593234220,0.12403,30807.0,30796.0,0.00043847]
[1609593234221,0.12403,30807.0,30806.0,0.00043837]
[1609593234822,0.12403,30807.0,30784.0,1.0]
[1609593235020,0.12403,30807.0,30806.0,0.0004384]
[1609593235220,0.12403,30807.0,30785.0,0.04019659]
[1609593235521,0.12403,30807.0,30806.0,0.0004384]
[1609593235921,0.12403,30807.0,30795.0,0.18043158]
[1609593235922,0.30446158,30807.0,30795.0,0.18043158]
[1609593236120,0.30446158,30807.0,30806.0,0.0004384]
[1609593236322,0.30446158,30807.0,30796.0,0.0004384]
[1609593237822,0.30446158,30807.0,30800.0,0.18043158]
[1609593237823,0.12403,30807.0,30800.0,0.18043158]
[1609593238222,0.2837,30815.0,30800.0,0.18043158]
[1609593238623,0.2837,30815.0,30801.0,0.0004384]
[1609593239522,0.11471,30814.0,30801.0,0.0004384]
[1609593239923,0.18043158,30802.0,30798.0,0.18043158]
[1609593240122,0.34420158,30802.0,30798.0,0.18043158]
[1609593240323,0.34420158,30802.0,30799.0,0.00043836]
[1609593241625,0.34420158,30802.0,30783.0,0.1771]
[1609593241825,0.16377,30802.0,30800.0,0.18043158]
[1609593242026,0.16377,30802.0,30789.0,1.0]
[1609593242628,0.16377,30802.0,30798.0,0.03]
[1609593243029,0.16377,30802.0,30799.0,0.00043833]
[1609593243830,1.18043158,30800.0,30799.0,0.00043833]
[1609593245129,1.18043158,30800.0,30799.0,0.00043835]
[1609593247833,0.18043158,30800.0,30799.0,0.00043835]
[1609593249537,0.18043158,30800.0,30799.0,0.04019375]
[1609593249837,6.18043158,30800.0,30798.0,0.03]
[1609593250038,6.18043158,30800.0,30799.0,0.00043842]
[1609593250236,7.18043158,30800.0,30799.0,0.00043842]
[1609593250637,6.18043158,30800.0,30799.0,0.00043842]
[1609593251037,7.18043158,30800.0,30799.0,0.00043842]
[1609593251839,7.18043158,30800.0,30783.0,0.1771]
[1609593252639,7.18043158,30800.0,30784.0,0.04021745]
[1609593252838,7.18043158,30800.0,30784.0,0.00043761]
[1609593253039,0.2956,30799.0,30784.0,0.00043761]
[1609593253238,1.0,30798.0,30785.0,0.00043764]
[1609593253639,1.0,30798.0,30779.0,0.03978295]
[1609593253839,6.0,30786.0,30779.0,0.03978295]
[1609593254040,0.18043158,30780.0,30779.0,0.00043765]
[1609593254239,1.18043158,30780.0,30779.0,0.00043765]
[1609593254440,1.18043158,30780.0,30771.0,0.04022473]
[1609593254742,1.18043158,30780.0,30779.0,0.00043768]
[1609593255143,1.18043158,30780.0,30771.0,0.04022475]
[1609593255342,1.18043158,30780.0,30767.0,0.1771]
[1609593255543,1.18043158,30780.0,30768.0,0.04022742]
[1609593255943,0.18043158,30769.0,30768.0,0.04022742]
[1609593256143,1.18043158,30769.0,30768.0,0.04022742]
[1609593256342,1.34845158,30769.0,30768.0,0.04022742]
[1609593256645,0.34845158,30769.0,30753.0,0.04023236]
[1609593256845,0.34845158,30769.0,30768.0,0.00043777]
[1609593257044,1.34845158,30769.0,30768.0,0.00043777]
[1609593257244,1.34845158,30769.0,30754.0,0.04023363]
[1609593257445,1.34845158,30769.0,30768.0,0.00043779]
[1609593257648,1.34845158,30769.0,30755.0,0.04023445]
[1609593257845,7.34845158,30769.0,30755.0,0.04023445]
[1609593258046,0.18043158,30756.0,30754.0,0.03979628]
[1609593258245,0.33120158,30756.0,30753.0,0.04023367]
[1609593258445,0.15077,30756.0,30755.0,0.04023323]
[1609593258846,0.15077,30756.0,30754.0,0.04022803]
[1609593259047,0.15077,30756.0,30754.0,0.11980144]
[1609593259246,0.15077,30756.0,30755.0,1.0]
[1609593259646,6.16802,30769.0,30755.0,1.11978813]
[1609593259846,0.16802,30769.0,30756.0,0.11977428]
[1609593260046,0.16802,30769.0,30768.0,0.18043158]
[1609593260249,0.16802,30769.0,30768.0,0.18241368]
[1609593260447,0.16802,30769.0,30768.0,0.04219819]
[1609593261449,0.18043158,30774.0,30768.0,0.04219819]
[1609593261649,0.18043158,30774.0,30768.0,0.00241969]
[1609593261849,0.18043158,30774.0,30769.0,0.00043766]
[1609593262049,0.18043158,30770.0,30769.0,0.00043766]
[1609593262249,0.32511158,30770.0,30769.0,0.00043766]
[1609593262950,0.32511158,30770.0,30768.0,0.0019821]
[1609593263150,0.32511158,30770.0,30769.0,0.00043771]
[1609593265952,6.32511158,30770.0,30769.0,0.00043771]
[1609593267955,0.32511158,30770.0,30769.0,0.00043771]
[1609593271958,6.32511158,30770.0,30763.0,0.0004409]
[1609593272158,6.32511158,30770.0,30769.0,0.0004409]
[1609593272356,6.32511158,30770.0,30764.0,0.0004409]
[1609593272557,0.2744,30769.0,30764.0,0.0004409]
[1609593272758,0.2744,30769.0,30745.0,0.11980243]
[1609593272957,1.2744,30769.0,30765.0,0.00044092]
[1609593273157,1.2744,30769.0,30746.0,0.04023038]
[1609593273557,1.2744,30769.0,30766.0,0.00044095]
[1609593273757,1.2744,30769.0,30747.0,0.00044095]
[1609593273957,1.0,30748.0,30747.0,0.03979002]
[1609593274358,1.0,30748.0,30746.0,0.00044095]
[1609593274559,1.0,30748.0,30747.0,0.04023074]
[1609593274758,1.0,30748.0,30747.0,0.00044095]
[1609593275158,1.0,30748.0,30745.0,0.04023009]
[1609593275358,1.0,30748.0,30747.0,0.04023096]
[1609593275560,1.0,30748.0,30746.0,0.04023055]
[1609593275962,0.16833,30752.0,30747.0,0.18043158]
[1609593276160,0.16833,30752.0,30747.0,0.22066194]
[1609593276360,0.16833,30752.0,30748.0,0.04023052]
[1609593278065,0.34876158,30752.0,30751.0,0.18043158]
[1609593278265,0.34677854,30752.0,30751.0,0.18043158]
[1609593278466,0.34677854,30752.0,30751.0,0.22066235]
[1609593279067,0.34677854,30752.0,30751.0,0.22066238]
[1609593283668,0.34677854,30752.0,30751.0,0.0402308]
[1609593284070,0.34677854,30752.0,30745.0,0.04023807]
[1609593284471,0.34677854,30752.0,30751.0,0.04023839]
[1609593284672,0.34677854,30752.0,30745.0,0.04023861]
[1609593284871,1.34677854,30752.0,30751.0,0.00044]
[1609593285072,1.34677854,30752.0,30744.0,0.1771]
[1609593285272,1.34677854,30752.0,30741.0,0.18043158]
[1609593285471,1.34677854,30752.0,30742.0,0.04024348]
[1609593285673,4.0777,30745.0,30736.0,0.04024815]
[1609593285874,6.0,30743.0,30736.0,0.04024815]
[1609593286072,0.18043158,30737.0,30733.0,0.11941576]
[1609593286272,0.33663158,30737.0,30726.0,0.26005339]
[1609593286474,0.1562,30737.0,30734.0,0.0402522]
[1609593286774,0.1562,30737.0,30726.0,0.11987357]
[1609593287975,0.18043158,30727.0,30725.0,0.18043158]
[1609593288376,0.32426158,30727.0,30725.0,0.18043158]
[1609593288576,0.32426158,30727.0,30726.0,0.04025737]
[1609593288979,5.02606158,30727.0,30715.0,0.04025891]
[1609593289176,5.02606158,30727.0,30713.0,0.0796299]
[1609593289177,5.02606158,30727.0,30726.0,0.04026449]
[1609593289477,5.02606158,30727.0,30716.0,0.04026674]
[1609593289677,5.02606158,30727.0,30726.0,0.04026873]
[1609593289877,6.0,30717.0,30707.0,0.07965492]
[1609593290078,0.18043158,30710.0,30707.0,0.2600865]
[1609593290279,0.33232158,30710.0,30707.0,0.30035572]
[1609593290479,0.33232158,30710.0,30708.0,0.04026877]
[1609593290978,0.33232158,30710.0,30708.0,0.03982947]
[1609593291178,0.33232158,30710.0,30709.0,0.0004393]
[1609593291379,0.33232158,30710.0,30709.0,0.04070831]
[1609593291579,0.33232158,30710.0,30709.0,0.0008786]
[1609593291780,0.33033641,30710.0,30709.0,0.0008786]
[1609593291979,0.33033641,30710.0,30709.0,0.04070992]
[1609593292180,0.33033641,30710.0,30709.0,0.0008786]
[1609593293081,0.33033641,30710.0,30709.0,0.0004393]
[1609593293282,0.33033641,30710.0,30709.0,0.00087864]
[1609593293983,5.10423641,30710.0,30709.0,0.00087864]
[1609593294584,0.33033641,30710.0,30709.0,0.00087864]
[1609593294986,0.33033641,30710.0,30709.0,0.00087765]
[1609593297385,0.15189,30710.0,30709.0,0.00087765]
[1609593297800,0.16385,30710.0,30709.0,0.00087765]
[1609593298008,0.16385,30710.0,30709.0,1.00087765]
[1609593298200,0.16385,30710.0,30709.0,2.00087765]
[1609593298604,0.14385,30710.0,30709.0,2.04070461]
[1609593298800,0.14383,30727.0,30709.0,2.30078033]
[1609593298989,0.14383,30727.0,30710.0,0.04025503]
[1609593299186,1.0,30733.0,30710.0,0.11988886]
[1609593299393,1.0,30733.0,30711.0,1.0]
[1609593299787,1.0,30733.0,30712.0,0.07962271]
[1609593299989,0.1562,30737.0,30712.0,0.11987212]
[1609593300190,0.1562,30737.0,30713.0,1.0]
[1609593300390,2.90264437,30778.0,30714.0,0.11985812]
[1609593300590,2.90264437,30778.0,30715.0,1.0]
[1609593300790,0.18043158,30746.0,30738.0,0.18043158]
[1609593301190,0.18043158,30746.0,30738.0,0.2206737]
[1609593301593,0.18043158,30746.0,30738.0,0.04024212]
[1609593301790,0.18043158,30746.0,30738.0,0.00043799]
[1609593301992,1.00986833,30739.0,30721.0,1.0]
[1609593302191,1.13205833,30739.0,30738.0,0.00043799]
[1609593302492,1.13205833,30739.0,30723.0,0.04024428]
[1609593302693,0.21043158,30738.0,30723.0,0.04024428]
[1609593302892,0.21043158,30738.0,30723.0,0.03980627]
[1609593303092,0.03,30738.0,30724.0,0.00043799]
[1609593303294,0.03,30738.0,30723.0,0.04024429]
[1609593303695,0.03,30738.0,30725.0,0.000438]
[1609593303894,0.03,30738.0,30724.0,0.000438]
[1609593304095,0.03,30738.0,30723.0,0.03980627]
[1609593304096,0.03,30738.0,30726.0,0.00043796]
[1609593304496,0.03,30738.0,30725.0,0.12732]
[1609593304696,0.03,30738.0,30737.0,0.18043158]
[1609593304897,0.03,30738.0,30737.0,1.18043158]
[1609593305296,0.03,30738.0,30737.0,1.22066895]
[1609593305896,0.03,30738.0,30737.0,7.22066895]
[1609593306497,0.03,30738.0,30737.0,7.30024535]
[1609593306999,0.16117,30747.0,30737.0,7.30024535]
[1609593307396,0.16117,30747.0,30738.0,0.11980134]
[1609593307596,0.16117,30747.0,30739.0,1.0]
[1609593307997,0.16117,30747.0,30740.0,0.03978844]
[1609593308197,0.16117,30747.0,30740.0,0.04022625]
[1609593308398,0.15918741,30747.0,30740.0,0.04022625]
[1609593308597,0.15918741,30747.0,30740.0,1.04022625]
[1609593308797,0.15918741,30747.0,30746.0,0.18043158]
[1609593308998,0.15918741,30747.0,30746.0,1.18043158]
[1609593309198,0.15918741,30747.0,30746.0,1.22065609]
[1609593309900,0.18043158,30775.0,30746.0,1.22065609]
[1609593310099,0.18043158,30775.0,30747.0,0.1771]
[1609593310300,0.18043158,30775.0,30747.0,1.1771]
[1609593310501,0.18043158,30775.0,30747.0,1.21732637]
[1609593310702,0.18043158,30775.0,30774.0,0.18043158]
[1609593310903,0.18043158,30775.0,30748.0,0.04022569]
[1609593311906,1.0,30754.0,30748.0,0.04022569]
[1609593312105,1.0,30754.0,30747.0,0.1671]
[1609593312307,1.13784,30754.0,30740.0,1.0]
[1609593312706,1.13784,30754.0,30753.0,0.18043158]
[1609593313308,1.13784,30754.0,30753.0,0.22066353]
[1609593314010,0.13784,30754.0,30753.0,0.21066353]
[1609593314210,0.13784,30754.0,30753.0,0.17086945]
[1609593314611,0.13784,30754.0,30753.0,0.04023488]
[1609593314814,0.31827158,30754.0,30753.0,0.00043787]
[1609593315212,0.31827158,30754.0,30753.0,0.04023718]
[1609593315413,0.31827158,30754.0,30748.0,0.04023802]
[1609593315612,0.31827158,30754.0,30753.0,0.00043793]
[1609593315913,1.0,30753.0,30749.0,0.04023824]
[1609593316112,1.0,30753.0,30748.0,0.03979984]
[1609593316512,1.0,30753.0,30750.0,0.04023692]
[1609593316713,1.0,30753.0,30749.0,0.04023673]
[1609593316913,1.0,30753.0,30752.0,0.18043158]
[1609593317315,1.0,30753.0,30752.0,0.22066692]
[1609593317516,1.0,30753.0,30752.0,1.22066692]
[1609593317918,0.13784,30754.0,30752.0,2.04023534]
[1609593318115,1.0,30772.0,30752.0,2.04023534]
[1609593318315,1.0,30772.0,30753.0,0.04022925]
[1609593318816,0.18043158,30761.0,30758.0,0.18043158]
[1609593319016,0.34525158,30761.0,30758.0,0.18043158]
[1609593319216,0.34525158,30761.0,30759.0,0.04022744]
[1609593319919,1.34525158,30761.0,30759.0,0.04022744]
[1609593320418,1.34525158,30761.0,30759.0,0.00043782]
[1609593321119,1.34525158,30761.0,30758.0,0.18043158]
[1609593321319,1.34525158,30761.0,30760.0,0.00043782]
[1609593321522,1.34525158,30761.0,30759.0,0.00043782]
[1609593321721,1.34525158,30761.0,30760.0,0.00043782]
[1609593321921,0.34525158,30761.0,30760.0,0.00043782]
[1609593322321,0.34525158,30761.0,30759.0,0.00043778]
[1609593322523,0.34525158,30761.0,30760.0,0.00043778]
[1609593323122,0.34525158,30761.0,30759.0,0.0004378]
[1609593323322,0.34525158,30761.0,30758.0,0.18043158]
[1609593323323,0.34525158,30761.0,30760.0,0.0004378]
[1609593323923,1.34525158,30761.0,30759.0,0.00043782]
[1609593324123,1.34525158,30761.0,30760.0,0.00043782]
[1609593324424,1.34525158,30761.0,30759.0,0.00043785]
[1609593326024,1.0,30760.0,30759.0,0.00043785]
[1609593327924,0.34525158,30761.0,30759.0,0.04022682]
[1609593328525,0.34525158,30761.0,30739.0,0.04022871]
[1609593328724,0.34525158,30761.0,30760.0,0.00043414]
[1609593328925,0.34525158,30761.0,30744.0,0.18043158]
[1609593329425,0.34525158,30761.0,30745.0,0.04023024]
[1609593329625,0.34525158,30761.0,30745.0,0.03979607]
[1609593329825,0.34525158,30761.0,30760.0,0.00043417]
[1609593330025,0.34525158,30761.0,30745.0,0.04023024]
[1609593330425,0.34525158,30761.0,30760.0,0.00043417]
[1609593330626,0.34525158,30761.0,30746.0,0.00043365]
[1609593330825,0.16482,30761.0,30760.0,0.00043361]
[1609593331026,1.0,30768.0,30760.0,0.00043361]
[1609593331228,0.5252,30761.0,30747.0,0.00043363]
[1609593331429,0.1347,30761.0,30745.0,0.03979607]
[1609593331628,4.2749,30756.0,30748.0,0.0004337]
[1609593332028,1.14018,30746.0,30739.0,0.04023568]
[1609593332230,1.14018,30746.0,30739.0,0.03980198]
[1609593332430,1.14018,30746.0,30740.0,0.00043373]
[1609593332631,1.14018,30746.0,30731.0,0.356]
[1609593332831,0.18043158,30732.0,30729.0,0.18043158]
[1609593333229,0.28533158,30732.0,30730.0,0.04024403]
[1609593333631,0.28533158,30732.0,30725.0,0.04024714]
[1609593333830,0.28533158,30732.0,30731.0,0.04024991]
[1609593334030,0.28533158,30732.0,30726.0,0.0402509]
[1609593334331,0.28533158,30732.0,30731.0,0.04025107]
[1609593334531,0.28533158,30732.0,30723.0,0.1771]
[1609593334532,0.25533158,30732.0,30727.0,0.0402522]
[1609593334933,0.1049,30732.0,30731.0,0.04025291]
[1609593335133,0.1049,30732.0,30724.0,0.04025219]
[1609593335335,0.1049,30732.0,30731.0,0.04025588]
[1609593335534,0.768,30732.0,30731.0,0.04025588]
[1609593335734,0.768,30732.0,30725.0,0.04025554]
[1609593335934,6.768,30732.0,30724.0,0.04025922]
[1609593336134,6.768,30732.0,30726.0,0.04026037]
[1609593336334,6.768,30732.0,30706.0,0.07965283]
[1609593336536,6.768,30732.0,30705.0,0.37623196]
[1609593336537,6.1049,30732.0,30705.0,0.37623196]
[1609593336735,4.6856,30727.0,30705.0,0.37623196]
[1609593336935,4.6856,30727.0,30710.0,0.04026323]
[1609593336936,1.0,30726.0,30710.0,0.04026323]
[1609593337734,1.0,30726.0,30706.0,0.04026561]
[1609593338135,1.0,30726.0,30705.0,0.1771]
[1609593338335,1.0,30726.0,30706.0,0.04026666]
[1609593338936,0.18043158,30707.0,30706.0,0.04026666]
[1609593339335,0.30467158,30707.0,30706.0,0.04026666]
[1609593339936,1.30467158,30707.0,30706.0,0.04026666]
[1609593340844,1.30467158,30707.0,30706.0,0.22069824]
[1609593341240,1.30268625,30707.0,30706.0,0.22069824]
[1609593341639,1.30268625,30707.0,30706.0,0.18043158]
[1609593341841,1.30268625,30707.0,30706.0,0.22070079]
[1609593342043,0.29268625,30707.0,30706.0,0.22070079]
[1609593342442,0.29268625,30707.0,30706.0,0.04026921]
[1609593343042,0.12424,30707.0,30706.0,0.04026921]
[1609593344044,0.12424,30707.0,30704.0,0.04027174]
[1609593344443,1.0,30717.0,30704.0,0.04027174]
[1609593344643,0.13469,30707.0,30704.0,1.04027174]
[1609593345043,0.13469,30707.0,30705.0,0.11993733]
[1609593345244,0.13469,30707.0,30706.0,1.0]
[1609593345646,0.13469,30707.0,30706.0,1.1199249]
[1609593345944,0.13469,30707.0,30706.0,2.1199249]
[1609593346145,0.13469,30707.0,30706.0,1.1199249]
[1609593346346,0.13469,30707.0,30706.0,2.1199249]
[1609593346545,1.0,30724.0,30706.0,2.1199249]
[1609593346945,1.0,30724.0,30723.0,0.18043158]
[1609593347548,1.0,30724.0,30723.0,0.22069298]
[1609593347950,0.1049,30732.0,30723.0,0.0402614]
[1609593348150,0.2944,30738.0,30723.0,0.0402614]
[1609593348549,0.2944,30738.0,30711.0,0.11991097]
[1609593348750,0.40622,30738.0,30724.0,0.04025483]
[1609593349151,0.11182,30738.0,30737.0,0.18043158]
[1609593349350,0.11182,30738.0,30737.0,0.18086542]
[1609593351054,0.29225158,30738.0,30737.0,0.18086542]
[1609593351755,0.29225158,30738.0,30737.0,0.00043384]
[1609593351958,11.08985158,30738.0,30704.0,1.14788]
[1609593352156,11.08985158,30738.0,30704.0,1.0]
[1609593352357,1.0,30737.0,30732.0,0.0004339]
[1609593352556,1.0,30737.0,30710.0,0.03982777]
[1609593352757,1.0,30737.0,30733.0,0.00043401]
[1609593353158,0.18043158,30734.0,30710.0,0.03982777]
[1609593353357,1.18043158,30734.0,30710.0,0.0402618]
[1609593353965,1.0,30711.0,30710.0,0.0402618]
[1609593354164,1.11902,30711.0,30710.0,0.0402618]
[1609593355163,1.11902,30711.0,30710.0,0.22069338]
[1609593355861,0.11902,30711.0,30710.0,0.22069338]
[1609593356866,0.11902,30711.0,30710.0,1.22069338]
[1609593357076,1.0,30720.0,30710.0,1.22069338]
[1609593357262,0.15675,30711.0,30710.0,1.22069338]
[1609593357472,0.15675,30711.0,30710.0,1.3003516]
[1609593357671,0.15675,30711.0,30710.0,1.18043158]
[1609593357863,0.15675,30711.0,30710.0,2.30033444]
[1609593358564,0.14675,30711.0,30710.0,2.30033444]
[1609593359065,0.14675,30711.0,30710.0,2.41979532]
[1609593359564,0.14675,30711.0,30710.0,2.30033444]
[1609593359964,0.14675,30711.0,30710.0,0.30033444]
[1609593360366,0.14675,30711.0,30710.0,0.22068848]
[1609593361166,0.14476525,30711.0,30710.0,0.22068848]
[1609593361968,1.14476525,30711.0,30710.0,0.0402569]
[1609593362570,1.14476525,30711.0,30705.0,0.356]
[1609593362571,9.644,30700.0,30695.0,0.1194881]
[1609593362770,9.75658,30700.0,30695.0,0.1194881]
[1609593362969,9.75658,30700.0,30695.0,0.19958901]
[1609593363170,9.75658,30700.0,30699.0,0.18043158]
[1609593363669,9.75658,30700.0,30699.0,0.2207001]
[1609593363870,10.75658,30700.0,30699.0,0.2207001]
[1609593364774,10.55806294,30700.0,30699.0,0.2207001]
[1609593365673,10.55806294,30700.0,30699.0,1.2207001]
[1609593365872,9.55806294,30700.0,30699.0,1.2207001]
[1609593366076,9.55806294,30700.0,30699.0,1.30036646]
[1609593367873,9.55806294,30700.0,30699.0,2.30036646]
[1609593368473,9.55806294,30700.0,30699.0,2.41985083]
[1609593368976,9.55806294,30700.0,30699.0,1.41985083]
[1609593369176,9.26033838,30700.0,30699.0,2.41985083]
[1609593369575,9.26033838,30700.0,30699.0,2.30036646]
[1609593369775,9.14775838,30700.0,30699.0,2.41984782]
[1609593370176,9.14775838,30700.0,30699.0,2.52906782]
[1609593370576,9.02825838,30700.0,30699.0,2.52906782]
[1609593371878,9.02825838,30700.0,30699.0,7.52906782]
[1609593372277,8.44875838,30700.0,30699.0,7.52906782]
[1609593372479,8.44677425,30700.0,30699.0,7.52906782]
[1609593373281,8.04993343,30700.0,30699.0,16.12113158]
[1609593373980,8.04993343,30700.0,30699.0,10.12113158]
[1609593378089,7.65307838,30700.0,30699.0,7.69293965]
[1609593378692,7.35542811,30700.0,30699.0,7.69293965]
[1609593379291,7.15699514,30700.0,30699.0,7.69293965]
[1609593379587,7.15699514,30700.0,30699.0,8.46583965]
[1609593379988,7.15699514,30700.0,30699.0,14.46583965]
[1609593380187,7.15699514,30700.0,30699.0,14.34635829]
[1609593380587,7.15699514,30700.0,30699.0,14.46579576]
[1609593385694,6.53729514,30700.0,30699.0,14.46579576]
[1609593385893,6.53729514,30700.0,30699.0,8.46579576]
[1609593387394,6.33749514,30700.0,30699.0,8.46579576]
[1609593387995,6.33749514,30700.0,30699.0,14.46579576]
[1609593389599,5.9408821,30700.0,30699.0,16.87408135]
[1609593390500,5.1476146,30700.0,30699.0,16.87408135]
[1609593391299,4.9559146,30700.0,30699.0,16.87408135]
[1609593392000,4.9559146,30700.0,30699.0,10.87408135]
[1609593392600,4.3608842,30700.0,30699.0,10.87408135]
[1609593393301,4.3608842,30700.0,30699.0,10.69364977]
[1609593393501,4.06335384,30700.0,30699.0,10.69364977]
[1609593393902,4.06335384,30700.0,30699.0,10.87408135]
[1609593394101,0.12414,30734.0,30699.0,10.87408135]
[1609593394606,0.12414,30734.0,30700.0,0.65250071]
[1609593394805,0.12414,30734.0,30701.0,0.98]
[1609593395006,0.12414,30734.0,30701.0,1.01980056]
[1609593395206,0.12414,30734.0,30711.0,1.82746409]
[1609593395406,0.12414,30734.0,30712.0,1.14238]
[1609593395607,0.12414,30734.0,30713.0,0.11982575]
[1609593395808,0.12414,30734.0,30714.0,0.98]
[1609593396008,0.12414,30734.0,30733.0,0.18043158]
[1609593396408,0.12414,30734.0,30733.0,0.19066114]
[1609593397610,0.12215655,30734.0,30733.0,0.19066114]
[1609593397909,0.33605158,30745.0,30733.0,1.19066114]
[1609593398311,0.33605158,30745.0,30734.0,0.11982577]
[1609593399915,0.33605158,30745.0,30744.0,0.18043158]
[1609593399916,1.33605158,30745.0,30744.0,0.18043158]
[1609593400115,1.33605158,30745.0,30734.0,0.11982577]
[1609593400515,1.33605158,30745.0,30729.0,1.0]
[1609593400516,1.33605158,30745.0,30730.0,0.29693674]
[1609593400716,1.33605158,30745.0,30735.0,0.04023358]
[1609593400915,1.33605158,30745.0,30731.0,0.04023566]
[1609593401317,1.33605158,30745.0,30736.0,0.04023605]
[1609593401516,1.33605158,30745.0,30731.0,0.11983236]
[1609593401716,1.33605158,30745.0,30737.0,0.04023047]
[1609593401917,0.33605158,30745.0,30744.0,1.18043158]
[1609593402318,0.15562,30745.0,30744.0,1.30024986]
[1609593402716,0.58727733,30757.0,30744.0,1.30024986]
[1609593403117,0.58727733,30757.0,30745.0,0.11981727]
[1609593403919,0.58727733,30757.0,30756.0,0.18043158]
[1609593404521,0.58727733,30757.0,30756.0,0.22065107]
[1609593405622,0.18043158,30758.0,30756.0,0.22065107]
[1609593405822,0.58727622,30762.0,30756.0,0.22065107]
[1609593406022,0.58727622,30762.0,30757.0,0.04022034]
[1609593407727,0.58727622,30762.0,30757.0,0.05022034]
[1609593407927,0.7677078,30762.0,30761.0,0.18043158]
[1609593408427,0.7677078,30762.0,30761.0,0.22065264]
[1609593409330,0.18043158,30762.0,30761.0,0.22065264]
[1609593409732,0.60689941,30771.0,30761.0,0.22065264]
[1609593409932,0.78733099,30771.0,30770.0,0.18043158]
[1609593410133,0.18043158,30771.0,30770.0,0.18043158]
[1609593410335,0.01973355,30772.0,30770.0,0.18043158]
[1609593410534,0.01973355,30772.0,30771.0,0.03978044]
[1609593410734,0.01973355,30772.0,30771.0,0.04021264]
[1609593411936,1.20016513,30772.0,30771.0,0.04021264]
[1609593412236,1.20016513,30772.0,30766.0,0.04021367]
[1609593412437,1.31670158,30772.0,30771.0,0.04021353]
[1609593412736,1.31670158,30772.0,30767.0,0.0402136]
[1609593412937,1.31670158,30772.0,30765.0,0.18043158]
[1609593412938,1.31670158,30772.0,30771.0,0.04021398]
[1609593413237,1.31670158,30772.0,30768.0,0.04021411]
[1609593413437,1.30670158,30772.0,30768.0,0.04021411]
[1609593413637,1.30670158,30772.0,30771.0,0.04021349]
[1609593413836,1.30670158,30772.0,30766.0,0.04021574]
[1609593414038,0.18043158,30767.0,30764.0,0.18043158]
[1609593414441,0.18043158,30767.0,30766.0,0.04021457]
[1609593414639,0.18043158,30767.0,30765.0,0.04021685]
[1609593415238,0.15043158,30767.0,30765.0,0.04021685]
[1609593417040,0.14053158,30767.0,30765.0,0.04021685]
[1609593418244,0.13627,30772.0,30765.0,0.04021685]
[1609593418443,0.60595853,30776.0,30765.0,0.04021685]
[1609593419044,0.60595853,30776.0,30764.0,0.18043158]
[1609593419245,0.60595853,30776.0,30766.0,0.04021481]
[1609593419444,0.60595853,30776.0,30765.0,0.04021419]
[1609593419645,0.60595853,30776.0,30767.0,0.04021493]
[1609593419646,0.01973687,30771.0,30767.0,0.04021493]
[1609593419947,0.01973687,30771.0,30762.0,1.02]